[Event "SixDays Budapest January GM-A 2025"]
[Site "Budapest"]
[Date "2025.01.29"]
[Round "6.1"]
[White "Sedlak, Nikola"]
[Black "Girel, Joseph"]
[Result "1/2-1/2"]
[Annotator "TA"]
[ECO "A48"]
[WhiteElo "2456"]
[BlackElo "2490"]
[PlyCount "40"]
[EventDate "2025.01.24"]
[EventType "tourn"]
[EventCountry "HUN"]
[SourceTitle "playchess.com"]
[Source "ChessBase"]
[SourceQuality "1"]
[TimeControl "5400+30"]

{[%evp 11,40,5,6,5,0,0,10,6,17,17,19,18,16,3,30,25,27,25,22,19,16,13,15,5,3,5,6,0,22,0,20]} 1. d4 {[%emt 0:00:02]} Nf6 {[%emt 0:01:15]} 2. Nf3 {[%emt 0:00:07]} g6 {[%emt 0:00:30]} 3. c3 {[%emt 0:00:57]} Bg7 {[%emt 0:00:32]} 4. Bf4 {[%emt 0:00:08]} O-O {[%emt 0:01:57]} 5. Nbd2 {[%emt 0:00:09]} d6 {[%emt 0:01:21][%cal Bd7d6,Bd6e5][%mdl 32]} 6. e4 {[%emt 0:00:08]} Nc6 {[%emt 0:02:38]} 7. Be2 {[%emt 0:04:23] A48: 1 d4 Nf6 2 Nf3 g6: Torre, London and Colle Systems.} Re8 {[%emt 0:04:14]} 8. h3 {[%emt 0:03:02]} e5 {[%emt 0:00:36]} 9. dxe5 {[%emt 0:00:06]} Nxe5 {[%emt 0:00:51]} 10. Nxe5 {[%emt 0:00:09]} dxe5 {[%emt 0:00:08]} 11. Be3 {[%emt 0:00:06]} b6 {[%emt 0:02:17]} 12. Qc2 {[%emt 0:01:15]} Bb7 $146 {[%emt 0:01:08]} (12... Qe7 13. a4 a5 14. O-O Rd8 15. Rfb1 Ne8 16. b4 Be6 17. Nb3 Nd6 18. Nd2 Qh4 {0-1 Demchenko,A (2641)-Jones,G (2670) ACP ChessBase KO blitz 2020 (4.3)}) 13. a4 {[%emt 0:02:20]} a5 {[%emt 0:01:48]} 14. O-O {[%emt 0:00:57]} Qe7 {[%emt 0:00:52]} 15. Rfe1 {[%emt 0:09:36] The position is equal.} Red8 {[%emt 0:02:32]} 16. Bg5 {[%emt 0:01:37]} h6 {[%emt 0:03:26]} 17. Bh4 {[%emt 0:06:40]} Qe6 {[%emt 0:02:48]} 18. Bf1 {[%emt 0:00:41]} Rd7 {[%emt 0:15:33]} (18... g5 $5 19. Bg3 $8 Nh5 $11) 19. Bb5 {[%emt 0:00:53]} Rdd8 {[%emt 0:01:46]} 20. f3 {[%emt 0:02:19]} Bf8 {[%emt 0:08:48] Not much happened in this game.   Weighted Error Value: White=0.04 (flawless) /Black=0.04 (flawless)   Inaccurate:     	---       	Black=1      OK:         	White=6     	Black=7} 1/2-1/2

[Event "SixDays Budapest January GM-A 2025"]
[Site "Budapest"]
[Date "2025.01.29"]
[Round "6.2"]
[White "Uskov, Artem"]
[Black "Muthaiah AL"]
[Result "1/2-1/2"]
[Annotator "TA"]
[ECO "B10"]
[WhiteElo "2440"]
[BlackElo "2474"]
[PlyCount "51"]
[EventDate "2025.01.24"]
[EventType "tourn"]
[EventCountry "HUN"]
[SourceTitle "playchess.com"]
[Source "ChessBase"]
[SourceQuality "1"]
[TimeControl "5400+30"]

{[%evp 9,51,0,24,8,20,18,19,7,42,40,44,53,55,51,53,15,29,22,21,17,30,23,29,18,58,16,18,27,18,14,45,25,29,24,52,54,49,41,53,45,46,12,5,10]} 1. e4 {[%emt 0:06:41]} c6 {[%emt 0:01:15]} 2. Nf3 {[%emt 0:00:07]} d5 {[%emt 0:00:28]} 3. d3 {[%emt 0:00:10]} Bg4 {[%emt 0:00:21]} 4. h3 {[%emt 0:00:12]} Bh5 {[%emt 0:01:32]} 5. Qe2 {[%emt 0:00:16]} e6 {[%emt 0:00:29]} 6. g4 {[%emt 0:00:06]} Bg6 {[%emt 0:00:22]} 7. h4 {[%emt 0:00:11]} h5 {[%emt 0:00:40]} 8. Ne5 {[%emt 0:00:31] White wants to play Nxg6.} Ne7 {[%emt 0:00:27][%cal Bg8e7,Be7g6,Bg6h4][%mdl 32]} 9. Nxg6 {[%emt 0:11:20]} Nxg6 {[%emt 0:00:33]} 10. gxh5 {[%emt 0:02:57]} Nxh4 {[%emt 0:00:39]} 11. Qg4 $1 {[%emt 0:00:42]} g5 {[%emt 0:00:22]} 12. hxg6 {[%emt 0:10:52] [#] Hoping for Bg5.} (12. Qxg5 $2 {too greedy.} Nf3+ 13. Ke2 Nxg5 $19) ({Worse is} 12. Bxg5 Qxg5 (12... Nf3+ 13. Qxf3 Qxg5 14. Nd2 $14) 13. Rxh4 Qc1+ 14. Qd1 Bb4+ (14... Qxb2 15. Nd2 $17) 15. Ke2 Qg5 $17 (15... Qxb2 16. Nd2 $19)) (12. f4 {is interesting.} Nd7 13. fxg5 Ne5 14. Qe2) 12... Nxg6 {[%emt 0:02:15]} (12... Qf6 {feels hotter.} 13. gxf7+ Kxf7 14. Rh3 Nd7) 13. Rxh8 {[%emt 0:00:33]} Nxh8 {[%emt 0:00:13]} 14. Nc3 {[%emt 0:03:17]} Ng6 {[%emt 0:04:13]} 15. Bd2 {[%emt 0:03:44]} Nd7 {[%emt 0:08:15]} 16. O-O-O {[%emt 0:02:16]} dxe4 {[%emt 0:18:42]} 17. dxe4 {[%emt 0:02:03]} Qh4 {[%emt 0:04:14]} 18. Qxh4 {[%emt 0:01:00]} Nxh4 {[%emt 0:00:04]} 19. Be2 {[%emt 0:01:33]} e5 {[%emt 0:19:22]} 20. Bg4 {[%emt 0:07:28] [#] Strongly threatening Bg5.} Nf6 {[%emt 0:04:17]} 21. Bh3 {[%emt 0:00:56] Threatens to win with Bg5. This pair of bishops is nice.} Ng6 {[%emt 0:03:14]} 22. Be3 {[%emt 0:03:55]} Bb4 {[%emt 0:10:23]} 23. f3 {[%emt 0:00:43]} Nf4 {[%emt 0:01:23]} 24. Bf5 {[%emt 0:03:10]} Ke7 {[%emt 0:01:16]} 25. Bxf4 {[%emt 0:06:36]} exf4 {[%emt 0:00:50]} 26. Ne2 {[%emt 0:02:26] Weighted Error Value: White=0.09 (flawless) /Black=0.10 (very precise) .  Inaccurate:     	White=3     	Black=4      OK:         	White=10    	Black=9      Best:        	White=1     	---        Strong:       	White=1     	---} 1/2-1/2

[Event "SixDays Budapest January GM-A 2025"]
[Site "Budapest"]
[Date "2025.01.29"]
[Round "6.3"]
[White "Karacsonyi, Gellert"]
[Black "Ramoutar, Alan-Safar"]
[Result "0-1"]
[Annotator "TA"]
[ECO "B14"]
[WhiteElo "2384"]
[BlackElo "2334"]
[PlyCount "78"]
[EventDate "2025.01.24"]
[EventType "tourn"]
[EventCountry "HUN"]
[SourceTitle "playchess.com"]
[Source "ChessBase"]
[SourceQuality "1"]
[TimeControl "5400+30"]

{[%evp 16,78,16,14,10,24,24,2,16,13,11,37,39,31,10,-11,0,-11,0,-12,-18,-29,0,-3,-6,-16,-14,-8,-11,-17,-14,-17,0,-67,-66,-170,-158,-168,-160,-161,-170,-158,-150,-207,-214,-243,-236,-337,-343,-389,-401,-334,-302,-332,-261,-385,-256,-319,-395,-395,-398,-417,-396,-1307,-1277]} 1. e4 {[%emt 0:00:02]} c6 {[%emt 0:02:37]} 2. d4 {[%emt 0:00:09]} d5 {[%emt 0:00:07]} 3. exd5 {[%emt 0:00:08]} cxd5 {[%emt 0:00:08]} 4. c4 {[%emt 0:00:07]} Nf6 {[%emt 0:00:32]} 5. Nc3 {[%emt 0:00:17]} g6 {[%emt 0:00:10]} 6. Qb3 {[%emt 0:00:23]} Bg7 {[%emt 0:00:46]} 7. cxd5 {[%emt 0:00:25]} O-O {[%emt 0:00:23]} 8. Be2 {[%emt 0:00:21]} Na6 {[%emt 0:00:44] seems to push 8...Nbd7 aside.} 9. Bf3 {[%emt 0:00:26]} b5 {[%emt 0:00:34] B14: Caro-Kann: Panov-Botvinnik Attack with 5...e6 and 5...g6.} 10. a3 {[%emt 0:09:35][%cal Oc1f4]} Rb8 {[%emt 0:01:09]} 11. Bf4 {[%emt 0:02:28]} Nc7 {[%emt 0:02:53] The position is equal.} 12. Nge2 {[%emt 0:02:51]} Rb6 {[%emt 0:00:28]} 13. O-O {[%emt 0:04:23]} Bb7 {[%emt 0:00:31] [#]} 14. d6 $1 {[%emt 0:02:12]} exd6 {[%emt 0:00:47]} 15. Bxb7 {[%emt 0:00:53]} Rxb7 {[%emt 0:00:12]} 16. h3 $146 {[%emt 0:05:06]} (16. Rfd1 Re8 17. h3 Qd7 18. Rac1 a5 19. Bg5 b4 20. axb4 axb4 21. Bxf6 Bxf6 22. Ng3 {½-½ Perez Rodriguez,L (2316)-Martinez Duany,L (2462) CUB-ch 60th Holguin 2024 (1)}) 16... Qd7 {[%emt 0:16:29]} 17. Rac1 {[%emt 0:02:35]} a5 {[%emt 0:11:28]} 18. Nd1 {[%emt 0:06:15]} Nfd5 {[%emt 0:03:29]} 19. Bd2 {[%emt 0:00:40]} b4 {[%emt 0:14:17]} 20. Qf3 {[%emt 0:04:35]} Rfb8 {[%emt 0:16:06]} 21. Ne3 {[%emt 0:02:31]} Nxe3 {[%emt 0:00:32]} 22. fxe3 {[%emt 0:00:17]} bxa3 {[%emt 0:06:10]} 23. bxa3 {[%emt 0:00:07]} a4 {[%emt 0:04:27]} 24. Nf4 {[%emt 0:04:59]} (24. Bb4 $11) 24... Rb3 $15 {[%emt 0:01:54]} 25. Nd5 {[%emt 0:25:54] White is on the road to losing.} (25. Qc6 $15 Qxc6 26. Rxc6) 25... Nxd5 $19 {[%emt 0:00:45]} 26. Qxd5 {[%emt 0:00:08]} Rxa3 {[%emt 0:01:48][%csl Oa4] Black has a strong passed pawn} 27. Qa5 {[%emt 0:08:41] [#]} Qe6 $1 {[%emt 0:07:12]} 28. Rc7 {[%emt 0:03:38] Strongly threatening Rcxf7.} Rf8 {[%emt 0:00:40]} 29. Qg5 {[%emt 0:06:06]} (29. Qb4 $17 Ra2 30. Bc1) 29... Ra2 {[%emt 0:01:56]} 30. Bb4 {[%emt 0:00:34]} Re2 {[%emt 0:01:54]} 31. Re7 {[%emt 0:00:24] [#]} (31. d5 {might work better.} Qe5 (31... Qxe3+ 32. Qxe3 Rxe3 33. Bxd6 $17) 32. Qxe5 Bxe5 33. Ra7) 31... Bh6 $1 {[%emt 0:01:44][%mdl 512]} 32. Rxe6 {[%emt 0:01:58]} (32. Qh4 Qd5) 32... Bxg5 {[%emt 0:00:01]} 33. Rxd6 {[%emt 0:00:05]} Bxe3+ {[%emt 0:00:47]} 34. Kh1 {[%emt 0:00:01]} Rb8 {[%emt 0:00:49]} 35. Bc5 {[%emt 0:00:21]} (35. Ba3 {was the only defense.} Ra8 36. Rf3) 35... f5 {[%emt 0:02:46] Hoping for ...Rbb2.} 36. Rd7 {[%emt 0:03:36]} Rbb2 {[%emt 0:00:25]} 37. Ba3 {[%emt 0:00:01]} Rb3 {[%emt 0:00:15]} 38. Ra1 {[%emt 0:02:35]} f4 {[%emt 0:00:31]} 39. Re7 $2 {[%emt 0:01:56] [#]} (39. Rd8+ Kf7 40. Rd7+ Kf6 41. h4) 39... Ra2 $1 {[%emt 0:00:35][%mdl 512] Weighted Error Value: White=0.41/Black=0.09 (flawless)   Mistake:       	White=6     	---        Inaccurate:     	---       	Black=2      OK:         	White=8     	Black=14     Best:        	---       	Black=3      Strong:       	---       	Black=1      Brilliant:      	---       	Black=2} 0-1

[Event "SixDays Budapest January GM-A 2025"]
[Site "Budapest"]
[Date "2025.01.29"]
[Round "6.4"]
[White "Raahul V S"]
[Black "Kovalev, Andrei"]
[Result "1/2-1/2"]
[Annotator "TA"]
[ECO "C41"]
[WhiteElo "2382"]
[BlackElo "2413"]
[PlyCount "147"]
[EventDate "2025.01.24"]
[EventType "tourn"]
[EventCountry "HUN"]
[SourceTitle "playchess.com"]
[Source "ChessBase"]
[SourceQuality "1"]
[TimeControl "5400+30"]

{[%evp 9,147,40,72,23,80,23,68,35,76,75,70,66,70,54,74,64,61,69,57,49,91,99,104,62,51,56,50,44,54,38,66,50,49,49,56,62,64,31,58,53,89,65,70,64,64,41,63,52,49,5,8,0,0,0,0,0,17,0,0,0,39,25,26,0,0,0,5,0,0,0,0,0,4,4,4,4,4,4,8,0,0,0,0,0,0,0,0,0,0,0,0,0,8,8,8,8,8,8,8,8,8,8,8,8,8,8,8,8,8,8,8,8,8,8,8,8,8,8,8,8,8,0,8,8,8,8,8,8,8,8,8,8,8,8,8,8,8,8,8,8]} 1. d4 {[%emt 0:04:14]} Nf6 {[%emt 0:00:12]} 2. Nc3 {[%emt 0:00:13]} d6 {[%emt 0:02:27]} 3. e4 {[%emt 0:00:11]} e5 {[%emt 0:00:10]} 4. Nf3 {[%emt 0:00:22]} Nbd7 {[%emt 0:00:17]} 5. a4 {[%emt 0:00:10]} g6 {[%emt 0:06:43]} 6. a5 {[%emt 0:02:44] C41: Philidor Defence.} ({Better is} 6. dxe5 $16 dxe5 7. Bc4) 6... Bg7 {[%emt 0:06:00]} (6... exd4 $11 7. Nxd4 Nc5) 7. Bc4 {[%emt 0:02:05]} (7. dxe5 $16 dxe5 8. Bc4) 7... O-O {[%emt 0:06:11]} 8. O-O {[%emt 0:00:16] White is slightly better.} h6 $146 {[%emt 0:13:18]} (8... c6 9. Re1 Qc7 10. h3 Rb8 11. Bb3 b5 12. axb6 axb6 13. d5 Nc5 14. dxc6 Nxb3 15. cxb3 Qxc6 {1-0 Rodriguez Basulto,R (2305)-Llorente Bello,E (2071) Guillermo Garcia Memorial op 2022 (6)}) 9. dxe5 {[%emt 0:03:56]} Nxe5 {[%emt 0:04:36]} 10. Nxe5 {[%emt 0:01:41]} dxe5 {[%emt 0:00:03]} 11. b3 {[%emt 0:00:11]} c6 {[%emt 0:06:51]} 12. Ba3 {[%emt 0:01:08]} Re8 {[%emt 0:03:04]} 13. Qxd8 {[%emt 0:00:30]} Rxd8 {[%emt 0:00:04]} 14. Rfd1 {[%emt 0:00:04]} Re8 {[%emt 0:02:24]} 15. Rd6 {[%emt 0:03:17]} Be6 {[%emt 0:08:05]} 16. a6 {[%emt 0:01:47]} b5 {[%emt 0:05:55]} 17. Bxe6 {[%emt 0:00:07]} Rxe6 {[%emt 0:00:04]} 18. Rxe6 {[%emt 0:00:22]} fxe6 {[%emt 0:00:01]} 19. Rd1 {[%emt 0:00:07]} Kf7 {[%emt 0:04:36] Prevents Be7} 20. Bc5 {[%emt 0:02:03]} Bf8 {[%emt 0:01:01]} 21. Be3 {[%emt 0:02:10]} Ke8 {[%emt 0:03:54]} 22. f3 {[%emt 0:00:06] Prevents Ng4.} Nd7 {[%emt 0:01:07]} 23. Kf2 {[%emt 0:00:28] White is much more active.} Nc5 {[%emt 0:02:10]} 24. Ra1 {[%emt 0:00:10]} Kd8 {[%emt 0:01:57]} 25. Ne2 {[%emt 0:00:18]} Nd7 {[%emt 0:06:11]} 26. Nc1 {[%emt 0:01:53]} Bc5 {[%emt 0:03:14]} 27. Nd3 {[%emt 0:02:00]} Bd4 {[%emt 0:01:21]} 28. Rd1 {[%emt 0:01:52]} Ke7 {[%emt 0:00:27]} 29. g3 {[%emt 0:06:16]} ({Don't play} 29. Nb4 $6 Rc8 $16) 29... c5 {[%emt 0:00:52]} 30. c3 {[%emt 0:02:37]} Bxe3+ {[%emt 0:00:20]} 31. Kxe3 $11 {[%emt 0:00:02][%mdl 4096] Endgame KRN-KRN} Rc8 {[%emt 0:01:43]} 32. Ra1 {[%emt 0:01:19]} Kd6 {[%emt 0:03:23]} 33. f4 {[%emt 0:01:15]} exf4+ {[%emt 0:01:27]} 34. gxf4 {[%emt 0:00:02]} e5 {[%emt 0:00:28]} 35. Nxe5 {[%emt 0:01:15]} Nxe5 $14 {[%emt 0:00:09] KRN-KR} 36. Rd1+ {[%emt 0:00:04]} Ke6 {[%emt 0:00:50] The position is equal.} 37. fxe5 $11 {[%emt 0:00:02] KR-KR. White is a pawn up.} Rc6 {[%emt 0:01:45] Against Rd6+} 38. Rd5 {[%emt 0:00:06]} g5 {[%emt 0:00:59]} 39. h4 {[%emt 0:03:24]} gxh4 {[%emt 0:00:35]} 40. Kf4 {[%emt 0:00:02]} h3 {[%emt 0:00:15][%cal Oh3h2] [#] and ...h2! would now be decisive} 41. Rd3 {[%emt 0:00:07]} Rxa6 {[%emt 0:02:06]} ({But not} 41... h2 $6 42. Rh3 Ke7 43. Rxh2 $14) 42. Rxh3 {[%emt 0:00:05]} Kf7 {[%emt 0:00:42]} 43. Kf5 {[%emt 0:00:07]} Rg6 {[%emt 0:00:13]} 44. Rd3 {[%emt 0:00:08] [#]} Rg5+ {[%emt 0:00:18]} 45. Kf4 {[%emt 0:00:04]} Rg1 {[%emt 0:01:34]} 46. Rd7+ {[%emt 0:02:33]} Ke6 {[%emt 0:00:57]} 47. Rd6+ {[%emt 0:00:06]} Ke7 {[%emt 0:00:01]} 48. Rc6 {[%emt 0:00:36]} Rf1+ {[%emt 0:00:08]} 49. Kg4 {[%emt 0:00:05]} h5+ {[%emt 0:01:03]} 50. Kxh5 {[%emt 0:00:14][%cal Oh5g4]} Rf3 {[%emt 0:01:20]} 51. Rxc5 {[%emt 0:00:27][%cal Oh5g4] Black must now prevent Kg4!.} b4 $1 {[%emt 0:00:35]} 52. cxb4 {[%emt 0:00:04]} Rxb3 {[%emt 0:00:03]} 53. Kg4 {[%emt 0:00:26]} Ke6 {[%emt 0:01:32]} 54. Kf4 {[%emt 0:00:42] White wants to play Rc6+.} Rxb4 {[%emt 0:00:34]} 55. Rc6+ {[%emt 0:00:03]} Kd7 {[%emt 0:00:07]} 56. Ra6 {[%emt 0:00:49]} Rb6 {[%emt 0:00:51]} 57. Ra1 {[%emt 0:02:38]} Ke6 {[%emt 0:00:02]} 58. Rh1 {[%emt 0:00:15]} Rb2 {[%emt 0:00:07]} 59. Rh6+ {[%emt 0:00:16]} Ke7 {[%emt 0:00:01]} 60. Ra6 {[%emt 0:00:52]} Rf2+ {[%emt 0:00:08]} 61. Ke3 {[%emt 0:00:05]} Rf1 {[%emt 0:00:05]} 62. e6 {[%emt 0:00:20]} Kf6 {[%emt 0:00:56]} (62... Rf6 63. Rxa7+ Kxe6 64. Kd4) 63. e7+ {[%emt 0:00:58]} Kxe7 {[%emt 0:00:02]} 64. Kd4 {[%emt 0:00:06]} Rb1 {[%emt 0:00:41]} 65. Rxa7+ {[%emt 0:00:22]} Ke6 {[%emt 0:00:01]} 66. Ra6+ {[%emt 0:00:04]} Ke7 {[%emt 0:00:06]} 67. Rc6 {[%emt 0:00:27]} Rb5 {[%emt 0:00:10]} 68. Ke3 {[%emt 0:00:11]} Ra5 {[%emt 0:00:19]} 69. Kf4 {[%emt 0:00:19]} Rb5 {[%emt 0:00:04]} 70. Ra6 {[%emt 0:02:25]} Rc5 {[%emt 0:00:08]} 71. Ra4 {[%emt 0:00:04]} Ke6 {[%emt 0:00:09]} 72. Ra8 {[%emt 0:00:30]} Rb5 {[%emt 0:00:15]} 73. Re8+ {[%emt 0:00:07]} Kf7 {[%emt 0:00:10]} 74. Re5 {[%emt 0:00:11] Weighted Error Value: White=0.10 (very precise) /Black=0.09 (flawless)   Mistake:       	White=1     	Black=1      Inaccurate:     	White=4     	Black=7      OK:         	White=25    	Black=36     Best:        	White=2     	Black=4      Strong:       	---       	Black=1} 1/2-1/2

[Event "SixDays Budapest January GM-A 2025"]
[Site "Budapest"]
[Date "2025.01.29"]
[Round "6.5"]
[White "Vanczak, Tamas"]
[Black "Vincenti, Leonardo"]
[Result "1-0"]
[Annotator "TA"]
[ECO "D30"]
[WhiteElo "2391"]
[BlackElo "2266"]
[PlyCount "73"]
[EventDate "2025.01.24"]
[EventType "tourn"]
[EventCountry "HUN"]
[SourceTitle "playchess.com"]
[Source "ChessBase"]
[SourceQuality "1"]
[TimeControl "5400+30"]

{[%evp 18,72,25,24,30,37,35,16,22,22,43,11,28,0,29,0,21,16,61,51,80,0,18,11,17,0,0,-68,-59,-61,0,0,7,3,42,48,20,-12,-10,-10,0,-57,-41,-68,-75,-71,-79,-67,0,0,214,254,797,797,783,405,29999]} 1. d4 {[%emt 0:00:07]} d5 {[%emt 0:00:06]} 2. c4 {[%emt 0:00:08]} e6 {[%emt 0:00:06]} 3. Nf3 {[%emt 0:00:04]} Nf6 {[%emt 0:00:07]} 4. g3 {[%emt 0:00:05]} Bb4+ {[%emt 0:00:32]} 5. Bd2 {[%emt 0:00:09]} Be7 {[%emt 0:01:05]} 6. Bg2 {[%emt 0:00:09]} O-O {[%emt 0:00:02]} 7. O-O {[%emt 0:00:20]} c6 {[%emt 0:00:12]} 8. Qc2 {[%emt 0:00:19]} Nbd7 {[%emt 0:03:35]} 9. Bf4 {[%emt 0:00:29]} Ne4 {[%emt 0:00:07] 9...a5 is a critical line.} 10. Nc3 {[%emt 0:07:44]} g5 {[%emt 0:02:29] [#] E08: Closed Catalan: Main Line: 7 Qc2.} 11. Bc1 {[%emt 0:02:43]} f5 {[%emt 0:06:30]} 12. Ne1 {[%emt 0:08:11]} Bf6 {[%emt 0:12:55] The position is equal.} 13. e3 {[%emt 0:05:20]} b6 $146 {[%emt 0:17:34]} (13... Qe7 14. Nd3 b6 15. b3 Bb7 16. Bb2 Qg7 17. Rac1 Rac8 18. Ne2 c5 19. Rfd1 Rfe8 20. dxc5 bxc5 21. Bxf6 Qxf6 22. Qb2 Qxb2 {½-½ Sviridov,V (2504)-Banusz,T (2616) EU-ch 18th Minsk 2017 (5)}) 14. b3 {[%emt 0:02:58][%cal Rc3e4]} Bb7 {[%emt 0:02:03]} 15. Bb2 {[%emt 0:02:11][%cal Rc3e4]} Qe7 {[%emt 0:05:08]} 16. a4 {[%emt 0:05:56][%cal Rc3e4,Ba2a4,Ba4a5][%mdl 32]} Nxc3 {[%emt 0:03:33]} 17. Qxc3 {[%emt 0:00:58]} Qg7 {[%emt 0:04:35]} 18. a5 {[%emt 0:01:43]} c5 {[%emt 0:01:01]} 19. Nd3 {[%emt 0:06:15]} (19. cxd5 $16 Bxd5 20. Bxd5 exd5 21. axb6) 19... cxd4 $1 $11 {[%emt 0:05:12]} 20. exd4 {[%emt 0:00:43]} Nc5 {[%emt 0:02:42]} 21. a6 {[%emt 0:17:11]} Nxa6 {[%emt 0:05:27][%cal Oa6c5]} 22. Ne5 {[%emt 0:06:46]} ({White should play} 22. Rfe1 $11) 22... Bxe5 $1 $15 {[%emt 0:07:17]} 23. dxe5 {[%emt 0:00:14]} Rac8 {[%emt 0:02:33]} (23... Rfc8 $15) 24. Ba3 $11 {[%emt 0:09:44] This pair of bishops is nice.} Rfd8 {[%emt 0:00:02]} 25. Rfd1 {[%emt 0:01:55]} dxc4 {[%emt 0:07:56] ...Bxg2 would now be deadly.} 26. Rxd8+ {[%emt 0:04:37]} Rxd8 {[%emt 0:00:02]} 27. Bxb7 {[%emt 0:00:08]} Qxb7 {[%emt 0:00:07]} 28. Qxc4 {[%emt 0:00:04]} Rd5 {[%emt 0:01:47][%cal Og8g7]} (28... Kf7 {is interesting.} 29. g4 f4 30. h4 b5) 29. Bd6 {[%emt 0:00:51]} (29. h4 $11) 29... Nc5 $15 {[%emt 0:02:00]} 30. h4 {[%emt 0:01:37]} Ne4 {[%emt 0:02:30]} 31. hxg5 {[%emt 0:03:19][%cal Oa1a7]} Nxg5 {[%emt 0:01:02]} (31... Nxd6 $6 32. exd6 Rxd6 33. Qa4 $11) (31... Kf7 {simplifies} 32. Qc7+ Qxc7 33. Bxc7 Nc3) 32. Qe2 {[%emt 0:04:16] [#]} Rd2 {[%emt 0:05:39]} 33. Qh5 $1 $11 {[%emt 0:00:59]} Nf7 $2 {[%emt 0:00:27]} (33... Nf3+ $11 {and Black is okay.} 34. Kf1 Qa8) 34. Rc1 $40 {[%emt 0:00:31][%mdl 128] Black must now prevent Rc7. White is out for blood.} Qd7 {[%emt 0:00:36]} (34... Rxd6 35. exd6 Nxd6 36. Qg5+ Kf7) 35. Rc7 {[%emt 0:00:19]} Qe8 36. Rxf7 {[%emt 0:00:13][%csl Gf7][%cal Rh5h7]} Rxd6 {[%emt 0:00:48]} (36... Qxf7 $18 37. Qg5+ Qg7 38. Qxd2 h6) 37. Qxh7# {[%emt 0:00:05] Weighted Error Value: White=0.29 (precise) /Black=0.70  Loses game:     	---       	Black=1      Mistake:       	White=3     	Black=3      Inaccurate:     	White=4     	Black=4      OK:         	White=7     	Black=4      Best:        	White=3     	Black=2      Strong:       	White=1     	Black=2} 1-0